[Event "Early-Titled-Tuesday-Blitz-August-29-2023"]
[Site "Chess.com"]
[Date "2023.08.29"]
[Round "5"]
[White "Chessmissile07"]
[Black "Aswathchess"]
[Result "0-1"]
[WhiteElo "2817"]
[BlackElo "2507"]
[TimeControl "180+1"]
[EndTime "8:54:48 PDT"]
[Termination "Aswathchess won by checkmate"]

1. e4 {[%clk 0:02:54.4]} 1... g6 {[%clk 0:02:58.6]} 2. d4 {[%clk 0:02:49.6]}
2... Bg7 {[%clk 0:02:57.9]} 3. c3 {[%clk 0:02:49.8]} 3... d6 {[%clk 0:02:57.1]}
4. Bd3 {[%clk 0:02:49.4]} 4... Nf6 {[%clk 0:02:57.4]} 5. Bg5 {[%clk 0:02:48.9]}
5... O-O {[%clk 0:02:56.7]} 6. Nf3 {[%clk 0:02:48.5]} 6... Nc6 {[%clk
0:02:54.7]} 7. Nbd2 {[%clk 0:02:44.2]} 7... h6 {[%clk 0:02:53.3]} 8. Bh4 {[%clk
0:02:43.8]} 8... e5 {[%clk 0:02:40]} 9. dxe5 {[%clk 0:02:43.3]} 9... dxe5 {[%clk
0:02:36.4]} 10. Qe2 {[%clk 0:02:43.6]} 10... Qe7 {[%clk 0:02:32.6]} 11. O-O
{[%clk 0:02:40.9]} 11... g5 {[%clk 0:02:28.8]} 12. Bg3 {[%clk 0:02:40.8]} 12...
Nh5 {[%clk 0:02:28.6]} 13. Rfd1 {[%clk 0:02:31.6]} 13... Nf4 {[%clk 0:02:25.9]}
14. Bxf4 {[%clk 0:02:31.4]} 14... exf4 {[%clk 0:02:22.2]} 15. Nb3 {[%clk
0:02:30.4]} 15... g4 {[%clk 0:02:21]} 16. Nfd4 {[%clk 0:02:29.8]} 16... Ne5
{[%clk 0:02:21.1]} 17. Nf5 {[%clk 0:02:15.7]} 17... Qg5 {[%clk 0:02:04.5]} 18.
Nxg7 {[%clk 0:01:36.8]} 18... Kxg7 {[%clk 0:02:05.4]} 19. Nd4 {[%clk 0:01:13.8]}
19... c5 {[%clk 0:01:51.7]} 20. Nf5+ {[%clk 0:01:13.5]} 20... Bxf5 {[%clk
0:01:51]} 21. exf5 {[%clk 0:01:14.4]} 21... Nf3+ {[%clk 0:01:40.9]} 22. Kh1
{[%clk 0:01:08.8]} 22... Rae8 {[%clk 0:01:38.1]} 23. Be4 {[%clk 0:01:00.2]}
23... Nxh2 {[%clk 0:01:27.8]} 24. Kxh2 {[%clk 0:00:38.6]} 24... f3 {[%clk
0:01:02]} 25. gxf3 {[%clk 0:00:26]} 25... Qh4+ {[%clk 0:01:01.4]} 26. Kg1 {[%clk
0:00:17.4]} 26... gxf3 {[%clk 0:01:01.2]} 27. f6+ {[%clk 0:00:18.1]} 27... Kh8
{[%clk 0:00:59.1]} 28. Qxf3 {[%clk 0:00:17.5]} 28... Rxe4 {[%clk 0:00:57.6]} 29.
Kf1 {[%clk 0:00:11.8]} 29... Rf4 {[%clk 0:00:55.5]} 30. Qg2 {[%clk 0:00:09.8]}
30... Rg8 {[%clk 0:00:54.8]} 31. Rd8 {[%clk 0:00:10.2]} 31... Rxf2+ {[%clk
0:00:51.6]} 32. Qxf2 {[%clk 0:00:11.1]} 32... Qh3+ {[%clk 0:00:49.2]} 33. Ke2
{[%clk 0:00:09.2]} 33... Rxd8 {[%clk 0:00:49.6]} 34. Re1 {[%clk 0:00:01.9]}
34... Qd3# {[%clk 0:00:39.9]} 0-1

[Event "Early-Titled-Tuesday-Blitz-August-29-2023"]
[Site "Chess.com"]
[Date "2023.08.29"]
[Round "5"]
[White "zabivol_mc"]
[Black "Juicy_Fork"]
[Result "1-0"]
[WhiteElo "2576"]
[BlackElo "2396"]
[TimeControl "180+1"]
[EndTime "8:54:48 PDT"]
[Termination "zabivol_mc won on time"]

1. e4 {[%clk 0:02:40.9]} 1... e5 {[%clk 0:02:51.9]} 2. Nf3 {[%clk 0:02:39.8]}
2... Nc6 {[%clk 0:02:52.5]} 3. Bc4 {[%clk 0:02:39.6]} 3... Nf6 {[%clk
0:02:52.3]} 4. d3 {[%clk 0:02:39.2]} 4... Bc5 {[%clk 0:02:50.9]} 5. Nc3 {[%clk
0:02:39]} 5... d6 {[%clk 0:02:47.9]} 6. Na4 {[%clk 0:02:38.8]} 6... Bb6 {[%clk
0:02:47.9]} 7. a3 {[%clk 0:02:38.5]} 7... h6 {[%clk 0:02:46.8]} 8. O-O {[%clk
0:02:37.2]} 8... O-O {[%clk 0:02:46.9]} 9. b4 {[%clk 0:02:33.1]} 9... Be6 {[%clk
0:02:32.4]} 10. Nxb6 {[%clk 0:02:23.2]} 10... axb6 {[%clk 0:02:31.8]} 11. Qe2
{[%clk 0:02:23.6]} 11... Re8 {[%clk 0:02:11.4]} 12. Bb2 {[%clk 0:02:14.1]} 12...
d5 {[%clk 0:01:57.9]} 13. exd5 {[%clk 0:01:59]} 13... Bxd5 {[%clk 0:01:57.4]}
14. Bxd5 {[%clk 0:01:51.1]} 14... Nxd5 {[%clk 0:01:51.7]} 15. Rfe1 {[%clk
0:01:45.7]} 15... f6 {[%clk 0:01:32.7]} 16. Qe4 {[%clk 0:01:41.8]} 16... Qd7
{[%clk 0:01:23.4]} 17. Nh4 {[%clk 0:01:38]} 17... Nf4 {[%clk 0:01:12.5]} 18. g3
{[%clk 0:01:29.4]} 18... Nh3+ {[%clk 0:01:06.1]} 19. Kg2 {[%clk 0:01:23.3]}
19... Ng5 {[%clk 0:01:05.8]} 20. Qf5 {[%clk 0:01:22.9]} 20... Qd5+ {[%clk
0:01:04.5]} 21. f3 {[%clk 0:01:07.8]} 21... b5 {[%clk 0:00:44.1]} 22. Re3 {[%clk
0:01:03.2]} 22... Nd4 {[%clk 0:00:20.4]} 23. Bxd4 {[%clk 0:01:01.6]} 23... Qxd4
{[%clk 0:00:21.3]} 24. Rae1 {[%clk 0:01:01.8]} 24... Rxa3 {[%clk 0:00:21]} 25.
Qg6 {[%clk 0:01:01.8]} 25... Qd7 {[%clk 0:00:12.1]} 26. Nf5 {[%clk 0:01:01.8]}
26... Kh8 {[%clk 0:00:11.7]} 27. Nxg7 {[%clk 0:01:00.1]} 27... Rg8 {[%clk
0:00:04.9]} 28. Qxh6+ {[%clk 0:00:59.8]} 28... Nh7 {[%clk 0:00:05.4]} 29. Nh5
{[%clk 0:00:57.4]} 29... Qf7 {[%clk 0:00:03]} 30. Re4 {[%clk 0:00:43.8]} 30...
Rg6 {[%clk 0:00:02.8]} 31. Qe3 {[%clk 0:00:43.5]} 31... Ra2 {[%clk 0:00:02.1]}
32. Re2 {[%clk 0:00:43.2]} 32... c6 {[%clk 0:00:02.4]} 33. d4 {[%clk 0:00:42.1]}
33... exd4 {[%clk 0:00:01.8]} 34. Re8+ {[%clk 0:00:40.5]} 34... Rg8 {[%clk
0:00:01.6]} 35. Rxg8+ {[%clk 0:00:39.5]} 35... Kxg8 {[%clk 0:00:01.6]} 36. Qh6
{[%clk 0:00:37.5]} 1-0

[Event "Early-Titled-Tuesday-Blitz-August-29-2023"]
[Site "Chess.com"]
[Date "2023.08.29"]
[Round "5"]
[White "Galileo22"]
[Black "Fandorine"]
[Result "0-1"]
[WhiteElo "2687"]
[BlackElo "2948"]
[TimeControl "180+1"]
[EndTime "8:54:52 PDT"]
[Termination "Fandorine won by resignation"]

1. d4 {[%clk 0:03:00.9]} 1... Nf6 {[%clk 0:02:59.6]} 2. Bf4 {[%clk 0:03:01.2]}
2... d6 {[%clk 0:02:59.6]} 3. Nc3 {[%clk 0:03:01.2]} 3... Nbd7 {[%clk
0:03:00.1]} 4. Nf3 {[%clk 0:03:00]} 4... c5 {[%clk 0:03:00.3]} 5. d5 {[%clk
0:02:56.3]} 5... Qa5 {[%clk 0:03:00.1]} 6. a4 {[%clk 0:02:17.9]} 6... Nb6 {[%clk
0:02:37.3]} 7. Bd2 {[%clk 0:01:43.5]} 7... Nc4 {[%clk 0:02:35.3]} 8. e3 {[%clk
0:01:33.1]} 8... Nxd2 {[%clk 0:02:34.1]} 9. Bb5+ {[%clk 0:01:25]} 9... Nd7
{[%clk 0:02:29.2]} 10. Nxd2 {[%clk 0:01:22.8]} 10... g6 {[%clk 0:02:27.5]} 11.
Ra3 {[%clk 0:01:20.7]} 11... Bg7 {[%clk 0:02:26.8]} 12. Nc4 {[%clk 0:01:02.8]}
12... Qc7 {[%clk 0:02:22.6]} 13. a5 {[%clk 0:01:00.6]} 13... O-O {[%clk
0:02:20.4]} 14. O-O {[%clk 0:00:49.9]} 14... Rb8 {[%clk 0:02:17]} 15. Qd3 {[%clk
0:00:42.8]} 15... Ne5 {[%clk 0:02:08]} 16. Nxe5 {[%clk 0:00:36.5]} 16... Bxe5
{[%clk 0:02:08.9]} 17. b3 {[%clk 0:00:19]} 17... Bg7 {[%clk 0:02:04.5]} 18. a6
{[%clk 0:00:12.5]} 18... b6 {[%clk 0:01:30.4]} 19. Bc6 {[%clk 0:00:11.4]} 19...
Bxc3 {[%clk 0:01:30.2]} 20. Qxc3 {[%clk 0:00:12.3]} 20... Bd7 {[%clk 0:01:30.7]}
21. Bxd7 {[%clk 0:00:12.1]} 21... Qxd7 {[%clk 0:01:31.6]} 22. Qd3 {[%clk
0:00:08.1]} 22... b5 {[%clk 0:01:31.6]} 23. Ra5 {[%clk 0:00:06.3]} 23... Rfc8
{[%clk 0:01:31.2]} 24. Rfa1 {[%clk 0:00:06.1]} 24... c4 {[%clk 0:01:27.5]} 25.
Qd4 {[%clk 0:00:03.8]} 25... Rb6 {[%clk 0:01:24.9]} 26. b4 {[%clk 0:00:03.4]}
26... c3 {[%clk 0:01:17.4]} 27. R1a3 {[%clk 0:00:02.8]} 27... Rc4 {[%clk
0:01:05.6]} 28. Qd1 {[%clk 0:00:03]} 28... Qc8 {[%clk 0:00:56.4]} 29. Rb3 {[%clk
0:00:02.7]} 29... Rxa6 {[%clk 0:00:49.3]} 30. Rxb5 {[%clk 0:00:02.8]} 30... Ra2
{[%clk 0:00:50]} 31. Ra5 {[%clk 0:00:02.8]} 31... Rb2 {[%clk 0:00:44.3]} 32.
Raa3 {[%clk 0:00:01.8]} 32... Rxb4 {[%clk 0:00:31.1]} 33. Rxb4 {[%clk
0:00:02.1]} 33... Rxb4 {[%clk 0:00:31.1]} 34. h3 {[%clk 0:00:03]} 34... Qc5
{[%clk 0:00:26.8]} 35. Qd3 {[%clk 0:00:02.9]} 35... Rb1+ {[%clk 0:00:27.1]} 36.
Kh2 {[%clk 0:00:03]} 36... Qxa3 {[%clk 0:00:27.7]} 0-1

[Event "Early-Titled-Tuesday-Blitz-August-29-2023"]
[Site "Chess.com"]
[Date "2023.08.29"]
[Round "5"]
[White "blitzo_vich"]
[Black "Jojo_898"]
[Result "1-0"]
[WhiteElo "2608"]
[BlackElo "2432"]
[TimeControl "180+1"]
[EndTime "8:54:52 PDT"]
[Termination "blitzo_vich won by resignation"]

1. Nf3 {[%clk 0:02:58.9]} 1... Nf6 {[%clk 0:02:59]} 2. c4 {[%clk 0:02:56.3]}
2... e6 {[%clk 0:02:56.4]} 3. g3 {[%clk 0:02:54.7]} 3... d5 {[%clk 0:02:53.8]}
4. Bg2 {[%clk 0:02:53.8]} 4... c6 {[%clk 0:02:54.2]} 5. O-O {[%clk 0:02:52.7]}
5... Be7 {[%clk 0:02:52.7]} 6. Qc2 {[%clk 0:02:50.3]} 6... O-O {[%clk
0:02:51.4]} 7. b3 {[%clk 0:02:50.1]} 7... Nbd7 {[%clk 0:02:37.4]} 8. Bb2 {[%clk
0:02:49.4]} 8... b6 {[%clk 0:02:33.4]} 9. d3 {[%clk 0:02:47.9]} 9... Bb7 {[%clk
0:02:32.9]} 10. Nbd2 {[%clk 0:02:41.4]} 10... Rc8 {[%clk 0:02:22.4]} 11. e4
{[%clk 0:02:39.9]} 11... dxe4 {[%clk 0:02:11.7]} 12. Nxe4 {[%clk 0:02:36.8]}
12... Nxe4 {[%clk 0:02:09.1]} 13. dxe4 {[%clk 0:02:37.7]} 13... c5 {[%clk
0:02:09.4]} 14. Rad1 {[%clk 0:02:34.6]} 14... Qc7 {[%clk 0:02:08.4]} 15. Rfe1
{[%clk 0:02:22.1]} 15... Bc6 {[%clk 0:02:07.5]} 16. h4 {[%clk 0:02:16.2]} 16...
Qb7 {[%clk 0:02:07.4]} 17. h5 {[%clk 0:02:04.2]} 17... h6 {[%clk 0:02:03.9]} 18.
Nh2 {[%clk 0:02:01]} 18... Bf6 {[%clk 0:01:30.4]} 19. Bc1 {[%clk 0:01:58]} 19...
Bd4 {[%clk 0:01:28.7]} 20. Ng4 {[%clk 0:01:51]} 20... f5 {[%clk 0:01:23.5]} 21.
Nh2 {[%clk 0:01:30.7]} 21... fxe4 {[%clk 0:01:20.5]} 22. Ng4 {[%clk 0:01:21.5]}
22... e3 {[%clk 0:01:04.7]} 23. fxe3 {[%clk 0:00:38.9]} 23... Be5 {[%clk
0:00:18.6]} 24. Rxd7 {[%clk 0:00:36.3]} 24... Qxd7 {[%clk 0:00:17.7]} 25. Nxe5
{[%clk 0:00:35.6]} 25... Qd6 {[%clk 0:00:18.1]} 26. Nxc6 {[%clk 0:00:34]} 26...
Qxg3 {[%clk 0:00:18.3]} 27. Ne7+ {[%clk 0:00:25.7]} 27... Kh8 {[%clk 0:00:17.2]}
28. Ng6+ {[%clk 0:00:23.4]} 28... Kg8 {[%clk 0:00:16.5]} 29. Qe2 {[%clk
0:00:20.8]} 29... Rf5 {[%clk 0:00:15.8]} 30. e4 {[%clk 0:00:19.3]} 30... Rf7
{[%clk 0:00:15.5]} 31. Rf1 {[%clk 0:00:18.1]} 31... Rcf8 {[%clk 0:00:15.3]} 32.
Nxf8 {[%clk 0:00:17.2]} 1-0

[Event "Early-Titled-Tuesday-Blitz-August-29-2023"]
[Site "Chess.com"]
[Date "2023.08.29"]
[Round "5"]
[White "Kostya0705"]
[Black "Kopytkin"]
[Result "1-0"]
[WhiteElo "2643"]
[BlackElo "2360"]
[TimeControl "180+1"]
[EndTime "8:54:54 PDT"]
[Termination "Kostya0705 won on time"]

1. e4 {[%clk 0:03:00.9]} 1... Nf6 {[%clk 0:02:59.5]} 2. e5 {[%clk 0:03:00.7]}
2... Nd5 {[%clk 0:02:59.7]} 3. d4 {[%clk 0:03:01.1]} 3... d6 {[%clk 0:03:00.2]}
4. c4 {[%clk 0:03:01]} 4... Nb6 {[%clk 0:03:00.5]} 5. exd6 {[%clk 0:03:01.3]}
5... cxd6 {[%clk 0:03:01.4]} 6. Nc3 {[%clk 0:03:00.2]} 6... g6 {[%clk 0:03:02]}
7. Bd3 {[%clk 0:02:59.8]} 7... Bg7 {[%clk 0:03:02.6]} 8. Nge2 {[%clk 0:03:00]}
8... O-O {[%clk 0:03:02.4]} 9. O-O {[%clk 0:02:58.4]} 9... Nc6 {[%clk
0:03:02.7]} 10. Be3 {[%clk 0:02:55.5]} 10... d5 {[%clk 0:02:45.4]} 11. c5 {[%clk
0:02:52.1]} 11... Nc4 {[%clk 0:02:45.7]} 12. Bxc4 {[%clk 0:02:49.2]} 12... dxc4
{[%clk 0:02:46.6]} 13. Qd2 {[%clk 0:02:47.1]} 13... Bf5 {[%clk 0:02:45.9]} 14.
d5 {[%clk 0:02:43.5]} 14... Nb4 {[%clk 0:02:45.3]} 15. Bd4 {[%clk 0:02:33.8]}
15... Bd3 {[%clk 0:02:23.3]} 16. Bxg7 {[%clk 0:02:08.1]} 16... Kxg7 {[%clk
0:02:24.2]} 17. Rfd1 {[%clk 0:01:56.7]} 17... Rc8 {[%clk 0:02:05.7]} 18. Nf4
{[%clk 0:01:29.2]} 18... Rxc5 {[%clk 0:01:59.7]} 19. Na4 {[%clk 0:01:22]} 19...
Rb5 {[%clk 0:01:43.7]} 20. Qc3+ {[%clk 0:01:15.4]} 20... Kg8 {[%clk 0:01:36]}
21. b3 {[%clk 0:01:07.7]} 21... Nxd5 {[%clk 0:01:12.8]} 22. Qe5 {[%clk
0:01:03.7]} 22... Nxf4 {[%clk 0:00:36.6]} 23. Qxb5 {[%clk 0:01:00.9]} 23... e5
{[%clk 0:00:21.4]} 24. Qxe5 {[%clk 0:00:56.9]} 24... Ne2+ {[%clk 0:00:20.4]} 25.
Kh1 {[%clk 0:00:57]} 25... Re8 {[%clk 0:00:21.1]} 26. Qb5 {[%clk 0:00:50]} 26...
Qh4 {[%clk 0:00:18.9]} 27. Qxe8+ {[%clk 0:00:48]} 27... Kg7 {[%clk 0:00:17.7]}
28. Nc5 {[%clk 0:00:41.9]} 28... Qxf2 {[%clk 0:00:13.3]} 29. Qe5+ {[%clk
0:00:41.1]} 29... f6 {[%clk 0:00:12.6]} 30. Qe7+ {[%clk 0:00:41.1]} 30... Kh6
{[%clk 0:00:13.1]} 31. Nxd3 {[%clk 0:00:39.4]} 31... cxd3 {[%clk 0:00:12.5]} 32.
Rxd3 {[%clk 0:00:37.2]} 32... Nf4 {[%clk 0:00:11.7]} 33. Rg3 {[%clk 0:00:32.6]}
33... f5 {[%clk 0:00:09.1]} 34. Re1 {[%clk 0:00:27.7]} 34... Nd3 {[%clk
0:00:07.7]} 35. Rh3+ {[%clk 0:00:25.6]} 1-0

[Event "Early-Titled-Tuesday-Blitz-August-29-2023"]
[Site "Chess.com"]
[Date "2023.08.29"]
[Round "5"]
[White "Frolyanov_D"]
[Black "MrAnnihilation"]
[Result "1-0"]
[WhiteElo "2608"]
[BlackElo "2433"]
[TimeControl "180+1"]
[EndTime "8:54:56 PDT"]
[Termination "Frolyanov_D won by resignation"]

1. d4 {[%clk 0:02:53.1]} 1... Nf6 {[%clk 0:02:59.2]} 2. c4 {[%clk 0:02:50.5]}
2... e6 {[%clk 0:02:59.5]} 3. Nf3 {[%clk 0:02:47.8]} 3... Bb4+ {[%clk
0:02:59.2]} 4. Nbd2 {[%clk 0:02:47]} 4... b6 {[%clk 0:02:58.5]} 5. e3 {[%clk
0:02:35.5]} 5... Bb7 {[%clk 0:02:58.1]} 6. Bd3 {[%clk 0:02:35.6]} 6... O-O
{[%clk 0:02:57.9]} 7. O-O {[%clk 0:02:30.5]} 7... Bxd2 {[%clk 0:02:58.5]} 8.
Nxd2 {[%clk 0:02:29.7]} 8... d6 {[%clk 0:02:59.2]} 9. Qc2 {[%clk 0:02:28.3]}
9... Nbd7 {[%clk 0:02:57.8]} 10. b3 {[%clk 0:02:27.8]} 10... c5 {[%clk 0:02:57]}
11. Bb2 {[%clk 0:02:27.8]} 11... Rc8 {[%clk 0:02:49.5]} 12. Rad1 {[%clk
0:02:26.3]} 12... cxd4 {[%clk 0:02:49.2]} 13. exd4 {[%clk 0:02:27.2]} 13... d5
{[%clk 0:02:44.9]} 14. Qb1 {[%clk 0:02:26.5]} 14... Nh5 {[%clk 0:02:23]} 15.
Bxh7+ {[%clk 0:02:07.5]} 15... Kh8 {[%clk 0:02:21.8]} 16. Bd3 {[%clk 0:01:50.4]}
16... Nf4 {[%clk 0:02:03.9]} 17. Nf3 {[%clk 0:01:49.3]} 17... dxc4 {[%clk
0:02:00.4]} 18. Be4 {[%clk 0:01:49.4]} 18... Nd5 {[%clk 0:01:45.7]} 19. bxc4
{[%clk 0:01:44.8]} 19... Rxc4 {[%clk 0:01:45]} 20. Qd3 {[%clk 0:01:42.8]} 20...
Ra4 {[%clk 0:01:20.7]} 21. Ne5 {[%clk 0:01:37.5]} 21... N7f6 {[%clk 0:01:12.7]}
22. Bc1 {[%clk 0:00:40.9]} 22... Kg8 {[%clk 0:01:07.1]} 23. Bg5 {[%clk 0:00:39]}
23... Ba6 {[%clk 0:00:39.2]} 24. Qh3 {[%clk 0:00:37]} 24... Bxf1 {[%clk
0:00:38.7]} 25. Bh7+ {[%clk 0:00:34.6]} 25... Nxh7 {[%clk 0:00:27.4]} 26. Bxd8
{[%clk 0:00:33.9]} 26... Bxg2 {[%clk 0:00:25.7]} 27. Qxg2 {[%clk 0:00:27.3]}
27... Rxd8 {[%clk 0:00:25.4]} 28. Rc1 {[%clk 0:00:18.4]} 28... Rxa2 {[%clk
0:00:24]} 29. Qf3 {[%clk 0:00:17.7]} 29... Nhf6 {[%clk 0:00:21.8]} 30. Kh1
{[%clk 0:00:13.6]} 30... b5 {[%clk 0:00:22]} 31. Rg1 {[%clk 0:00:13.1]} 31...
Ne7 {[%clk 0:00:12.2]} 32. Qxf6 {[%clk 0:00:11.3]} 32... Nf5 {[%clk 0:00:11.3]}
33. Qxd8+ {[%clk 0:00:11.1]} 1-0

[Event "Early-Titled-Tuesday-Blitz-August-29-2023"]
[Site "Chess.com"]
[Date "2023.08.29"]
[Round "5"]
[White "AlexanderL"]
[Black "Rud_Makarian"]
[Result "1/2-1/2"]
[WhiteElo "2845"]
[BlackElo "3020"]
[TimeControl "180+1"]
[EndTime "8:54:58 PDT"]
[Termination "Game drawn by repetition"]

1. Nf3 {[%clk 0:03:00.9]} 1... Nf6 {[%clk 0:02:59.5]} 2. c4 {[%clk 0:03:00.6]}
2... e6 {[%clk 0:02:59.7]} 3. Nc3 {[%clk 0:03:00.2]} 3... d5 {[%clk 0:03:00.6]}
4. e3 {[%clk 0:02:59.3]} 4... b6 {[%clk 0:03:00.4]} 5. b3 {[%clk 0:02:58.3]}
5... Bb7 {[%clk 0:03:00.5]} 6. Bb2 {[%clk 0:02:58.5]} 6... Nbd7 {[%clk
0:03:00.1]} 7. cxd5 {[%clk 0:02:58.3]} 7... exd5 {[%clk 0:03:00.4]} 8. Rc1
{[%clk 0:02:58.2]} 8... a6 {[%clk 0:03:00]} 9. Ne2 {[%clk 0:02:54.4]} 9... Bd6
{[%clk 0:02:52.3]} 10. Ned4 {[%clk 0:02:52.5]} 10... g6 {[%clk 0:02:51.9]} 11.
Nc6 {[%clk 0:02:51.2]} 11... Bxc6 {[%clk 0:02:46.2]} 12. Rxc6 {[%clk 0:02:50.5]}
12... O-O {[%clk 0:02:46.2]} 13. Rc1 {[%clk 0:02:44.4]} 13... c5 {[%clk
0:02:45.4]} 14. Be2 {[%clk 0:02:42.1]} 14... b5 {[%clk 0:02:44.3]} 15. O-O
{[%clk 0:02:41.8]} 15... Qe7 {[%clk 0:02:43.1]} 16. Qc2 {[%clk 0:02:38.5]} 16...
Rfe8 {[%clk 0:02:40.1]} 17. Rfd1 {[%clk 0:02:38.5]} 17... Rac8 {[%clk
0:02:39.3]} 18. Bf1 {[%clk 0:02:38]} 18... Ne5 {[%clk 0:02:35.9]} 19. Nxe5
{[%clk 0:02:35.2]} 19... Bxe5 {[%clk 0:02:36.8]} 20. Bxe5 {[%clk 0:02:33.2]}
20... Qxe5 {[%clk 0:02:37.7]} 21. d4 {[%clk 0:02:32.7]} 21... cxd4 {[%clk
0:02:36.4]} 22. Qxc8 {[%clk 0:02:33.5]} 22... Rxc8 {[%clk 0:02:36.8]} 23. Rxc8+
{[%clk 0:02:33.7]} 23... Kg7 {[%clk 0:02:37.5]} 24. Rxd4 {[%clk 0:02:33.8]}
24... h5 {[%clk 0:02:36.5]} 25. Rc2 {[%clk 0:02:27.6]} 25... Ng4 {[%clk
0:02:31.6]} 26. g3 {[%clk 0:02:01.7]} 26... Nxe3 {[%clk 0:02:29.9]} 27. Rcd2
{[%clk 0:02:02.1]} 27... Ng4 {[%clk 0:02:23.3]} 28. Rxd5 {[%clk 0:02:01.2]}
28... Qe1 {[%clk 0:02:23.3]} 29. Re2 {[%clk 0:01:53.5]} 29... Qc1 {[%clk
0:02:22.8]} 30. h3 {[%clk 0:01:43.7]} 30... Nf6 {[%clk 0:02:22.3]} 31. Rd3
{[%clk 0:01:40.8]} 31... h4 {[%clk 0:02:20.1]} 32. g4 {[%clk 0:01:41.2]} 32...
Nh7 {[%clk 0:02:15.4]} 33. Ree3 {[%clk 0:01:19.9]} 33... Ng5 {[%clk 0:02:12.4]}
34. Re2 {[%clk 0:01:15.7]} 34... Ne6 {[%clk 0:02:00.7]} 35. Rd7 {[%clk
0:01:09.1]} 35... Nf4 {[%clk 0:01:49.3]} 36. Re3 {[%clk 0:01:09.1]} 36... Qb1
{[%clk 0:01:36.7]} 37. Ra7 {[%clk 0:01:07.2]} 37... Qxa2 {[%clk 0:01:32.6]} 38.
Bxb5 {[%clk 0:01:01.1]} 38... Qa1+ {[%clk 0:00:58.9]} 39. Bf1 {[%clk 0:01:00.6]}
39... a5 {[%clk 0:00:47.4]} 40. b4 {[%clk 0:00:53.3]} 40... Qd4 {[%clk
0:00:47.1]} 41. Ree7 {[%clk 0:00:26.3]} 41... axb4 {[%clk 0:00:47.1]} 42. Rxf7+
{[%clk 0:00:26.7]} 42... Kh6 {[%clk 0:00:47.6]} 43. Rh7+ {[%clk 0:00:22.4]}
43... Kg5 {[%clk 0:00:47.9]} 44. Ra5+ {[%clk 0:00:22.7]} 44... Kf6 {[%clk
0:00:47.1]} 45. Ra6+ {[%clk 0:00:15.2]} 45... Kg5 {[%clk 0:00:45.3]} 46. Ra5+
{[%clk 0:00:14.6]} 46... Kf6 {[%clk 0:00:44.7]} 47. Ra6+ {[%clk 0:00:13.2]}
47... Kg5 {[%clk 0:00:34.7]} 48. Ra5+ {[%clk 0:00:12.9]} 1/2-1/2

[Event "Early-Titled-Tuesday-Blitz-August-29-2023"]
[Site "Chess.com"]
[Date "2023.08.29"]
[Round "5"]
[White "CSB7"]
[Black "GeorgiosSouleidis"]
[Result "1-0"]
[WhiteElo "2704"]
[BlackElo "2560"]
[TimeControl "180+1"]
[EndTime "8:54:58 PDT"]
[Termination "CSB7 won on time"]

1. d4 {[%clk 0:03:00.9]} 1... Nf6 {[%clk 0:02:59.4]} 2. c4 {[%clk 0:03:00.2]}
2... g6 {[%clk 0:02:59.6]} 3. Nc3 {[%clk 0:02:59.5]} 3... Bg7 {[%clk 0:02:59.9]}
4. e4 {[%clk 0:02:57.4]} 4... d6 {[%clk 0:03:00.6]} 5. Nf3 {[%clk 0:02:55.8]}
5... O-O {[%clk 0:03:01.2]} 6. Be2 {[%clk 0:02:55.8]} 6... e5 {[%clk 0:03:01.5]}
7. d5 {[%clk 0:02:56]} 7... a5 {[%clk 0:03:01.7]} 8. Bg5 {[%clk 0:02:54.7]} 8...
h6 {[%clk 0:03:02.2]} 9. Be3 {[%clk 0:02:54.9]} 9... Ng4 {[%clk 0:03:02]} 10.
Bd2 {[%clk 0:02:54.9]} 10... f5 {[%clk 0:03:02.5]} 11. h3 {[%clk 0:02:45.1]}
11... Nf6 {[%clk 0:03:02.5]} 12. exf5 {[%clk 0:02:44.7]} 12... gxf5 {[%clk
0:03:00.4]} 13. Qc1 {[%clk 0:02:44.7]} 13... Kh7 {[%clk 0:02:53.1]} 14. g4
{[%clk 0:02:42.6]} 14... e4 {[%clk 0:02:23.6]} 15. Nd4 {[%clk 0:02:23.8]} 15...
f4 {[%clk 0:01:38.3]} 16. Bxf4 {[%clk 0:02:03.2]} 16... Nh5 {[%clk 0:01:12.3]}
17. Be3 {[%clk 0:01:44.7]} 17... Nf4 {[%clk 0:01:12.2]} 18. Bxf4 {[%clk
0:01:41.1]} 18... Bxd4 {[%clk 0:01:12.1]} 19. Nxe4 {[%clk 0:01:19]} 19... Bxb2
{[%clk 0:01:00.3]} 20. Qxb2 {[%clk 0:01:16.7]} 20... Rxf4 {[%clk 0:01:00.2]} 21.
Bd3 {[%clk 0:01:14]} 21... Kg8 {[%clk 0:00:48.5]} 22. O-O-O {[%clk 0:00:42.8]}
22... Na6 {[%clk 0:00:48.5]} 23. g5 {[%clk 0:00:42.9]} 23... Nb4 {[%clk
0:00:07]} 24. gxh6 {[%clk 0:00:41.7]} 24... Nxd3+ {[%clk 0:00:06]} 25. Rxd3
{[%clk 0:00:42.6]} 25... Qf8 {[%clk 0:00:01.4]} 26. Rg1+ {[%clk 0:00:16.1]}
26... Kh7 {[%clk 0:00:02]} 27. Rdg3 {[%clk 0:00:14.1]} 27... Bf5 {[%clk
0:00:01.5]} 28. Nf6+ {[%clk 0:00:12.1]} 28... Kxh6 {[%clk 0:00:01.5]} 29. Ng8+
{[%clk 0:00:08.3]} 29... Kh7 {[%clk 0:00:01.7]} 30. Rg7+ {[%clk 0:00:08.4]} 1-0